bitfinex/quotes_ETHUSD_20260307
["timestamp","ask_amount","ask_price","bid_price","bid_amount"]
[1772906426145,0.45516941,1975.6,1974.8,0.21664802]
[1772906426345,0.45516941,1975.5,1975.3,0.0011]
[1772906426533,0.45516941,1975.5,1974.8,0.21664802]
[1772906427249,0.45516941,1975.4,1974.8,0.21664802]
[1772906427448,2.99498121,1975.5,1974.8,0.21664802]
[1772906427639,0.45516941,1975.8,1974.8,0.21664802]
[1772906428043,2.98858439,1975.8,1974.8,0.21664802]
[1772906428251,0.45516941,1975.7,1975.0,0.21664802]
[1772906430036,0.45516941,1975.7,1975.1,0.21664802]
[1772906430247,1.72060775,1975.6,1975.1,1.4823892]
[1772906430651,0.45516941,1975.6,1975.1,1.4823892]
[1772906432761,0.46460452,1975.9,1975.2,0.21664802]
[1772906433134,0.46460452,1975.9,1975.2,1.179]
[1772906433660,0.46460452,1975.9,1975.2,1.39564802]
[1772906433869,0.46460452,1975.9,1974.7,0.67696208]
[1772906433870,0.46460452,1975.8,1974.7,0.67696208]
[1772906434039,0.46460452,1975.4,1974.4,1.2661938]
[1772906434364,0.46460452,1975.1,1974.4,1.68284959]
[1772906434862,0.46460452,1975.0,1974.4,0.41664802]
[1772906435251,0.46460452,1975.0,1974.6,1e-08]
[1772906436255,0.46460452,1975.0,1974.6,1.26604503]
[1772906436562,0.46460452,1975.0,1974.6,1e-08]
[1772906437351,1.73042957,1975.0,1974.6,1e-08]
[1772906437557,0.46460452,1974.9,1974.6,1e-08]
[1772906437945,0.46460452,1974.9,1974.7,0.0011]
[1772906438567,1.7305555,1974.8,1974.7,0.0011]
[1772906438741,0.46460452,1974.8,1974.7,0.0011]
[1772906439143,0.46460452,1974.8,1974.6,1e-08]
[1772906440276,5.06340589,1975.0,1974.6,1e-08]
[1772906440277,0.46460452,1975.0,1974.6,1e-08]
[1772906440450,0.46460452,1975.0,1974.6,1.68382723]
[1772906440650,0.46207339,1975.0,1974.6,1.26607921]
[1772906441357,0.46460452,1974.9,1974.6,1e-08]
[1772906441557,0.46460452,1975.1,1974.6,0.42027916]
[1772906441868,0.46460452,1975.3,1974.6,0.42027916]
[1772906442458,0.46460452,1975.3,1974.7,1.26601509]
[1772906443049,0.46460452,1975.3,1974.7,1.68629424]
[1772906443262,0.46460452,1975.2,1974.7,1.68629424]
[1772906444849,0.46460452,1975.1,1974.6,1e-08]
[1772906445045,0.46460452,1975.1,1974.6,1.26607184]
[1772906445369,0.46460452,1975.0,1974.6,1e-08]
[1772906446278,0.46460452,1974.9,1974.6,1e-08]
[1772906447261,3.46111996,1974.9,1974.6,1e-08]
[1772906448278,0.46460452,1974.8,1974.6,1e-08]
[1772906449672,4.11839349,1975.2,1974.6,0.42027916]
[1772906449878,3.464371,1975.1,1974.6,0.42027916]
[1772906450058,2.99976648,1975.0,1974.6,0.42027916]
[1772906450248,2.99976648,1974.9,1974.7,0.0011]
[1772906450448,0.46460452,1975.0,1974.7,0.0011]
[1772906450649,3.00045108,1974.9,1974.7,0.0011]
[1772906450849,0.46460452,1975.0,1974.7,0.0011]
[1772906451047,3.65378897,1975.2,1974.7,0.0011]
[1772906451048,3.46504551,1974.9,1974.7,0.0011]
[1772906451245,1.7304941,1974.9,1974.7,0.0011]
[1772906451485,0.46460452,1974.7,1974.6,1e-08]
[1772906451661,3.46549671,1974.7,1974.6,1e-08]
[1772906452279,3.00089219,1974.7,1974.6,1e-08]
[1772906455161,3.00089219,1974.7,1974.5,1.2021]
[1772906455366,3.00089219,1974.6,1974.5,1.2021]
[1772906455573,3.00089219,1974.6,1974.5,2.46824332]
[1772906456187,2.85265676,1974.8,1974.5,2.46824332]
[1772906456558,0.46460452,1974.8,1974.5,2.46824332]
[1772906457482,0.46460452,1974.8,1974.5,2.46824221]
[1772906457689,0.46460452,1974.8,1974.5,1.2021]
[1772906458065,0.46460452,1974.8,1974.5,2.46822935]
[1772906458285,0.46460452,1974.8,1974.5,0.0011]
[1772906458471,0.46460452,1974.7,1974.5,1.2051]
[1772906458982,0.46460452,1974.7,1974.5,1.26722898]
[1772906459190,0.46460452,1974.7,1974.5,0.0011]
[1772906461590,0.48023161,1974.6,1974.5,0.0011]
[1772906462490,0.48023161,1974.6,1974.4,0.0011]
[1772906462691,0.48023161,1974.6,1974.3,2.47336767]
[1772906463111,0.48023161,1974.6,1974.3,1.26735982]
[1772906463391,0.47564551,1974.5,1974.3,2.47435982]
[1772906463810,0.47564551,1974.5,1974.3,1.2081]
[1772906464669,0.47564551,1974.5,1973.9,7.67837082]
[1772906464670,0.47564551,1974.4,1974.0,0.42737915]
[1772906464889,2.38805224,1974.4,1974.1,0.42137915]
[1772906465074,2.86369775,1974.4,1974.1,0.42137915]
[1772906465268,0.47564551,1974.3,1974.0,0.006]
[1772906465462,0.47564551,1974.3,1974.0,1.27246129]
[1772906466194,0.47564551,1974.3,1974.0,0.006]
[1772906466414,0.47564551,1974.2,1974.0,0.006]
[1772906467473,0.47564551,1974.2,1973.8,0.003]
[1772906467663,0.47564551,1974.1,1973.8,1.26951607]
[1772906467867,2.38805224,1974.2,1973.3,1.76883803]
[1772906467868,2.86369775,1973.9,1973.3,1.76883803]
[1772906468176,3.01179938,1973.8,1973.5,1.69416404]
[1772906468493,3.01179938,1973.7,1973.5,1.69416404]
[1772906468688,2.8851471,1973.9,1973.6,1.27551607]
[1772906468898,3.00844774,1973.8,1973.6,1.27551607]
[1772906469097,2.8851471,1973.9,1973.6,1.27551607]
[1772906469297,0.47564551,1973.9,1973.6,1.27551607]
[1772906469798,0.47564551,1973.9,1973.3,0.0745664]
[1772906470096,0.47564551,1973.8,1973.4,1.27551607]
[1772906470293,0.47564551,1973.8,1973.4,2.54235743]
[1772906471496,0.47564551,1973.8,1973.4,1.27551607]
[1772906471801,0.47564551,1973.8,1973.4,2.54235868]
[1772906473473,0.47564551,1973.8,1973.3,0.0745664]
[1772906473474,0.47564551,1973.7,1973.3,0.0745664]
[1772906473668,0.47564551,1974.1,1973.5,0.46619687]
[1772906473870,0.3420695,1974.7,1973.6,0.46619687]
[1772906474075,0.47564551,1974.5,1973.7,0.46619687]
[1772906474308,0.47564551,1974.5,1973.9,0.46619687]
[1772906474309,0.47664551,1974.5,1973.9,0.46619687]
[1772906474806,0.47664551,1974.5,1974.1,0.46619687]
[1772906474807,0.001,1974.5,1974.1,0.46619687]
[1772906474984,0.81771501,1974.7,1974.2,0.47519687]
[1772906475170,0.3420695,1974.7,1974.2,0.46619687]
[1772906475372,0.3420695,1974.7,1974.3,1.53271294]
[1772906475573,0.3420695,1974.7,1974.3,0.46619687]
[1772906476305,1e-08,1974.7,1974.4,1.73240432]
[1772906476608,0.47664551,1974.9,1974.6,0.46619687]
[1772906476609,0.001,1974.9,1974.6,0.46619687]
[1772906477702,0.47564551,1975.3,1974.7,0.46619687]
[1772906478201,0.001,1975.5,1974.9,0.46619687]
[1772906478389,0.001,1975.5,1975.1,0.46619687]
[1772906479002,0.47664551,1975.5,1975.2,0.009]
[1772906479207,0.47664551,1975.5,1975.1,1.06551607]
[1772906480304,0.47664551,1975.5,1975.1,2.33123034]
[1772906481012,0.47664551,1975.5,1975.1,1.07451607]
[1772906481391,0.47664551,1975.5,1975.1,2.34026268]
[1772906481586,0.47564551,1975.4,1974.9,1.201]
[1772906481790,0.47564551,1975.4,1974.9,3.54139471]
[1772906482109,0.47564551,1975.4,1974.9,2.47587864]
[1772906482892,0.47564551,1975.4,1975.0,1.07451607]
[1772906484496,0.47564551,1975.3,1975.0,1.07451607]
[1772906484904,0.47564551,1975.1,1974.8,2.47194956]
[1772906485211,0.47564551,1975.1,1974.9,0.87451607]
[1772906488015,0.47564551,1975.0,1974.8,0.0011]
[1772906488637,0.47564551,1975.0,1974.7,0.0011]
[1772906488790,0.47564551,1975.0,1974.5,0.0011]
[1772906488990,7.30734614,1975.2,1974.7,0.46619687]
[1772906488991,0.001,1975.2,1974.7,0.46619687]
[1772906491795,0.001,1975.2,1974.9,0.46619687]
[1772906494150,0.001,1975.2,1975.0,1.26582278]
[1772906494446,0.001,1975.2,1975.0,2.14033885]
[1772906497135,0.001,1975.2,1975.0,0.87451607]
[1772906497330,0.001,1975.2,1975.0,2.14033742]
[1772906497850,0.001,1975.2,1975.0,0.87451607]
[1772906498233,0.001,1975.2,1975.0,0.009]
[1772906498432,0.001,1975.2,1975.0,1.26581222]
[1772906499250,0.001,1975.2,1975.1,0.87451607]
[1772906502945,0.48631614,1975.2,1974.8,0.0011]
[1772906504331,0.48531614,1974.9,1974.8,0.0011]
[1772906506360,1.75120302,1974.9,1974.8,0.0011]
[1772906506762,1.75120302,1974.9,1974.8,9.803e-05]
[1772906507055,1.75120302,1974.9,1974.5,0.0011]
[1772906507056,0.48531614,1974.8,1974.5,0.0011]
[1772906509054,0.48531614,1974.6,1974.5,0.0011]
[1772906511496,1.75139534,1974.6,1974.5,0.0011]
[1772906511668,0.48531614,1974.5,1974.1,0.4524505]
[1772906511868,0.48531614,1974.5,1974.0,1.718883]
[1772906512067,0.48531614,1974.5,1973.6,1.26672071]
[1772906512236,0.48531614,1974.5,1974.3,0.0011]
[1772906512237,0.48531614,1974.4,1974.3,0.0011]
[1772906512443,0.48531614,1974.4,1973.6,0.4524505]
[1772906514184,1.26627158,1974.3,1973.8,0.4524505]
[1772906514367,0.48531614,1974.2,1973.8,0.4524505]
[1772906514745,6.78531614,1974.5,1973.8,0.4524505]
[1772906515456,6.3,1974.5,1973.8,0.4524505]
[1772906516073,6.3,1974.5,1973.9,1.26652819]
[1772906516278,8.05146011,1974.5,1974.1,0.4524505]
[1772906516477,0.48531614,1974.5,1974.1,0.4524505]
[1772906516678,0.48531614,1974.7,1974.1,0.4524505]
[1772906518685,8.127,1975.0,1974.3,0.4524505]
[1772906518686,6.3,1975.0,1974.3,0.4524505]
[1772906518860,0.48531614,1974.9,1974.3,0.4524505]
[1772906520786,1.26595098,1974.8,1974.3,1.71866703]
[1772906521080,1.75126712,1974.8,1974.3,1.26621653]
[1772906521284,1.75126712,1974.8,1974.2,1.71875049]
[1772906521457,0.48531614,1974.7,1974.1,1.26636951]
[1772906521657,0.48531614,1974.7,1974.0,0.4524505]
[1772906521858,0.48531614,1974.7,1973.8,0.45204773]
[1772906522655,1.75790873,1974.9,1973.8,0.45204773]
[1772906522882,1.75788557,1974.9,1974.0,0.48645907]
[1772906523086,0.49197171,1974.9,1974.0,0.48645907]
[1772906523688,1.26591329,1974.9,1974.0,0.48645907]
[1772906523881,0.49197171,1974.8,1973.9,0.0011]
[1772906524072,0.49297171,1974.8,1973.9,0.0011]
[1772906524466,0.49297171,1974.8,1973.9,0.48755907]
[1772906525167,0.49197171,1974.6,1973.9,1.7540505]
[1772906525367,0.49197171,1974.6,1973.9,0.0011]
[1772906525688,0.49197171,1974.3,1973.8,0.0011]
[1772906527191,1.75830744,1974.2,1973.8,0.0011]
[1772906527394,0.49197171,1974.1,1973.8,0.0011]
[1772906529173,1.75843574,1974.0,1973.8,0.0011]
[1772906530413,1.26646403,1974.0,1973.8,0.0011]
[1772906531814,1.75843574,1974.0,1973.8,0.0011]
[1772906532624,1.75843574,1974.0,1973.6,0.0011]
[1772906532625,0.49197171,1973.7,1973.3,0.0745664]
[1772906532787,0.49197171,1973.6,1973.3,0.0745664]
[1772906533292,0.49197171,1973.4,1972.6,0.48645907]
[1772906535599,1.26679574,1973.5,1972.8,0.48645907]
[1772906536115,0.4591519,1973.4,1972.8,0.48645907]
[1772906536418,0.4591519,1973.4,1972.6,1.73225901]
[1772906536715,0.4591519,1973.4,1972.8,0.464905]
[1772906536916,1.26679574,1973.5,1972.8,0.464905]
[1772906537299,0.4591519,1973.4,1972.7,0.0011]
[1772906537618,0.4591519,1973.4,1972.8,0.464905]
[1772906537619,1.26691329,1973.3,1972.8,0.464905]
[1772906538313,1.72606519,1973.3,1972.8,0.464905]
[1772906538702,0.4591519,1973.3,1972.8,0.464905]
[1772906538996,8.02598948,1973.5,1972.8,0.464905]
[1772906539918,8.02598948,1973.5,1972.9,0.464905]
[1772906540317,7.56678763,1973.5,1972.9,0.464905]
[1772906540503,0.4591519,1973.4,1972.7,0.466005]
[1772906541596,2.70200295,1973.4,1972.7,0.466005]
[1772906541924,1.72612939,1973.2,1972.7,0.466005]
[1772906542219,0.4591519,1973.1,1972.5,0.0011]
[1772906542419,0.5,1973.0,1972.5,0.0011]
[1772906544027,1.76717015,1972.9,1972.5,0.0011]
[1772906547845,100.0,1973.0,1972.5,0.0011]
[1772906548926,100.0,1973.0,1972.6,0.0011]
[1772906550932,101.26710939,1973.0,1972.6,0.0011]
[1772906552833,0.5,1972.9,1972.6,0.0011]
[1772906553034,0.49945,1972.7,1971.9,3.40945095]
[1772906553326,0.49945,1972.9,1972.1,0.0011]
[1772906553530,2.99840596,1972.8,1972.1,0.0011]
[1772906553825,0.49945,1972.9,1972.1,0.0011]
[1772906553826,2.99840596,1972.7,1972.1,0.0011]
[1772906554060,0.49945,1972.9,1972.2,0.0033]
[1772906554339,3.49944161,1972.8,1972.2,0.0011]
[1772906554545,2.99999161,1972.7,1972.3,0.0022]
[1772906554698,106.02460113,1973.0,1972.3,0.0033]
[1772906554897,2.99999431,1972.9,1972.4,0.0033]
[1772906555163,2.99999431,1972.8,1972.4,0.0011]
[1772906555319,2.99999431,1972.7,1972.5,0.0022]
[1772906555508,2.99999431,1972.6,1972.5,0.0022]
[1772906556048,2.99999431,1972.6,1972.1,0.0011]
[1772906556354,0.49945,1972.8,1972.1,0.0011]
[1772906556629,3.50187731,1972.7,1972.1,0.0011]
[1772906556812,3.50187731,1972.7,1972.2,0.0022]
[1772906556813,3.00242731,1972.6,1972.2,0.0022]
[1772906557136,1.26736287,1972.6,1972.2,0.0022]
[1772906557335,1.26736287,1972.6,1972.3,0.0022]
[1772906557520,0.68655443,1972.5,1971.9,3.40835095]
[1772906557725,0.68655443,1972.5,1972.0,0.0022]
[1772906557921,0.68655443,1972.7,1972.0,0.0022]
[1772906558120,3.00277865,1972.6,1972.1,0.0022]
[1772906558432,3.00277865,1972.6,1971.9,3.40835095]
[1772906558604,3.840738,1972.9,1971.9,3.40835095]
[1772906558804,3.00347071,1972.8,1972.0,0.0022]
[1772906559005,3.00347071,1972.7,1972.0,0.0022]
[1772906559225,3.00347071,1972.6,1972.1,0.0022]
[1772906559425,3.84072779,1972.9,1972.0,0.0022]
[1772906559733,0.68655443,1972.8,1972.0,0.0022]
[1772906560108,1.887,1972.9,1972.1,0.0022]
[1772906560331,1.887,1972.9,1971.9,3.40835095]
[1772906560514,98.31805318,1972.0,1971.9,3.40835095]
[1772906560836,100.68655443,1973.0,1971.9,4.74383594]
[1772906560837,100.0,1973.0,1971.9,4.74383594]
[1772906561739,100.0,1973.0,1972.0,0.0011]
[1772906562131,0.001,1972.8,1972.0,0.15058499]
[1772906562443,0.001,1972.8,1972.0,0.0011]
[1772906562444,0.68655443,1972.7,1972.0,0.0011]
[1772906562811,0.68655443,1972.7,1971.9,0.0011]
[1772906562812,0.68655443,1972.4,1971.7,0.0011]
[1772906563011,2.24908163,1972.5,1971.7,0.0011]
[1772906563012,0.68655443,1972.2,1971.7,0.0011]
[1772906563211,0.68655443,1972.2,1971.7,1.26904121]
[1772906563716,0.68655443,1972.2,1971.7,0.0011]
[1772906564540,1.95418461,1972.2,1971.7,0.0011]
[1772906565042,0.68655443,1972.2,1971.7,0.0011]
[1772906565417,0.68655443,1972.1,1971.7,0.0011]
[1772906565842,0.68655443,1972.0,1971.7,0.0011]
[1772906567543,0.68655443,1972.4,1971.7,0.0011]
[1772906569642,0.68655443,1972.3,1971.7,0.0011]
[1772906570218,0.68655443,1972.2,1971.7,0.0011]
[1772906572753,0.68655443,1972.5,1971.7,0.0011]
[1772906572970,0.68600443,1972.1,1970.0,0.01016]
[1772906573136,1.29,1972.4,1967.4,0.2528083]
[1772906573137,10.29628348,1969.3,1967.4,0.2528083]
[1772906573337,10.29628348,1969.3,1967.4,10.79928163]
[1772906573338,0.68600443,1968.7,1967.4,10.79928163]
[1772906573556,2.39182938,1968.1,1967.1,1.03735997]
[1772906573763,2.39182938,1967.9,1967.1,1.03735997]
[1772906574087,0.62802031,1967.1,1966.3,0.003]
[1772906574242,2.37111402,1966.8,1966.0,1.27161749]
[1772906574426,0.62802031,1967.1,1965.2,15.67404049]
[1772906574427,0.67502031,1966.4,1965.4,1.27200569]
[1772906574627,0.67502031,1966.4,1965.3,1.43081239]
[1772906574628,0.67502031,1966.2,1965.3,1.43081239]
[1772906574925,0.49814994,1966.0,1965.4,1.27200569]
[1772906575138,4.840409,1966.8,1965.4,1.27200569]
[1772906575139,0.49814994,1966.3,1965.4,1.27200569]
[1772906575457,0.49814994,1966.2,1965.3,1.43077302]
[1772906575758,3.55594004,1966.2,1965.3,0.158744]
[1772906575932,1.827,1966.6,1965.4,0.48356524]
[1772906575933,3.55594004,1966.1,1965.4,0.48356524]
[1772906576128,3.55594004,1967.1,1965.4,0.48356524]
[1772906576329,2.24908163,1967.4,1965.4,0.48356524]
[1772906576530,7.33153913,1967.6,1965.8,0.54910124]
[1772906576729,5.0824575,1967.6,1965.8,0.48356524]
[1772906576957,5.0806812,1968.3,1965.7,1.27181156]
[1772906576958,3.55594004,1967.8,1966.2,0.48356524]
[1772906577256,3.55594004,1967.8,1966.1,2.66039995]
[1772906577257,0.49814994,1967.9,1966.3,0.54910124]
[1772906577457,0.49814994,1967.9,1966.3,0.48356524]
[1772906577646,2.24908163,1967.6,1966.3,0.48356524]
[1772906577832,0.49814994,1967.6,1966.1,2.66039995]
[1772906578028,2.24908163,1967.7,1966.1,2.66039995]
[1772906578029,0.49814994,1967.3,1966.2,0.14948499]
[1772906578346,2.74723157,1967.7,1966.2,0.48356524]
[1772906578660,1.76873738,1967.6,1966.3,1.75498872]
[1772906578864,0.49814994,1967.6,1966.3,1.75498872]
[1772906579029,0.49814994,1968.0,1966.4,0.48356524]
[1772906579250,0.49814994,1968.4,1966.4,0.48356524]
[1772906579653,0.49814994,1968.2,1966.3,1.27142348]
[1772906579853,0.49814994,1968.2,1966.4,0.48356524]
[1772906580159,0.49814994,1967.8,1965.6,2.11350695]
[1772906580352,1.775,1967.7,1965.8,0.48356524]
[1772906580537,3.55594004,1968.2,1966.0,0.48356524]
[1772906580752,0.49814994,1968.1,1966.2,0.48356524]
[1772906580947,0.49814994,1968.1,1966.5,0.14948499]
[1772906581169,1.27016052,1968.3,1966.8,0.48356524]
[1772906581370,1.27011091,1968.4,1966.8,0.48356524]
[1772906581737,1.7681885,1968.5,1967.0,0.45187239]
[1772906581940,2.98978672,1968.6,1967.2,0.45187239]
[1772906582344,2.98978672,1968.6,1967.4,0.47250929]
[1772906582554,2.8584625,1968.6,1967.4,0.47250929]
[1772906582748,2.8584625,1968.6,1967.6,0.47250929]
[1772906584960,2.8584625,1968.6,1967.7,1.27051887]
[1772906585371,2.8584625,1968.6,1967.7,1.74302816]
[1772906586155,4.45148724,1969.4,1967.8,0.47250929]
[1772906586573,0.46504022,1969.3,1967.8,0.47250929]
[1772906586826,0.46504022,1969.3,1967.9,1.27038975]
[1772906586827,1.73453802,1969.3,1967.9,1.27038975]
[1772906586992,0.46504022,1969.3,1967.9,1.27038975]
[1772906587336,0.46504022,1969.3,1968.0,0.47250929]
[1772906588028,0.001,1968.5,1968.0,0.47250929]
[1772906588243,0.46504022,1969.3,1968.0,0.47250929]
[1772906588537,1.73430611,1969.7,1968.2,0.47250929]
[1772906589040,1.73430611,1969.7,1968.3,1.27013158]
[1772906589041,0.46504022,1969.6,1968.3,1.27013158]
[1772906589196,1.26926589,1969.7,1968.3,4.36756223]
[1772906589197,0.46504022,1969.5,1968.3,4.36756223]
[1772906589926,0.46504022,1969.9,1968.6,0.47250929]
[1772906590621,3.8940972,1970.1,1968.8,0.47250929]
[1772906590828,2.62511594,1970.1,1968.8,0.47250929]
[1772906591131,1.73392132,1970.3,1969.0,0.47250929]
[1772906591320,0.46504022,1970.3,1969.0,0.47250929]
[1772906591697,0.46504022,1970.3,1968.9,1.26974452]
[1772906591698,1.73365849,1970.7,1969.2,0.47250929]
[1772906592016,0.46504022,1970.6,1969.2,0.47250929]
[1772906592218,0.46504022,1970.5,1968.9,2.45474452]
[1772906592424,0.46504022,1970.5,1969.3,0.47250929]
[1772906593106,0.46504022,1970.5,1969.4,1.26942215]
[1772906593308,0.46504022,1970.4,1969.0,1.26968004]
[1772906593616,0.46504022,1970.4,1968.5,5.55246243]
[1772906593617,2.69339039,1969.9,1968.5,1.26993802]
[1772906593804,0.46504022,1969.7,1968.5,1.26993802]
[1772906595101,1.73433347,1969.6,1968.4,5.08024997]
[1772906595699,1.73410662,1970.0,1968.5,0.47250929]
[1772906595999,3.39216091,1969.9,1968.5,0.47250929]
[1772906596817,2.92712069,1969.9,1968.8,0.47250929]
[1772906597030,0.46504022,1970.1,1968.8,0.47250929]
[1772906597333,4.66663966,1970.1,1968.9,1.26974452]
[1772906597526,2.9325891,1970.0,1968.9,1.26974452]
[1772906598333,2.9325891,1970.0,1969.0,0.47250929]
[1772906598702,1.73379288,1970.5,1969.0,0.47250929]
[1772906598910,2.93809759,1970.4,1969.0,0.47250929]
[1772906599163,2.93809759,1970.3,1969.2,0.47250929]
[1772906599311,2.93809759,1970.2,1969.2,0.47250929]
[1772906599505,2.94249587,1970.1,1969.2,0.47250929]
[1772906599701,0.46504022,1970.4,1969.2,0.47250929]
[1772906600000,2.94271248,1970.3,1969.2,0.47250929]
[1772906600339,0.001,1969.9,1969.2,0.47250929]
[1772906601214,0.001,1969.9,1969.3,1.26948661]
[1772906601414,0.001,1969.9,1969.3,1.7419959]
[1772906601679,0.001,1969.9,1969.4,0.47250929]
[1772906602000,3.55594004,1970.6,1969.4,0.47250929]
[1772906602001,2.95252922,1970.5,1969.4,0.47250929]
[1772906602204,2.95252922,1970.4,1969.4,0.47250929]
[1772906602435,2.95252922,1970.3,1969.4,0.47250929]
[1772906602618,2.95252922,1970.2,1969.4,0.47250929]
[1772906602824,2.95252922,1970.1,1969.4,0.47250929]
[1772906603063,0.46504022,1970.4,1969.3,1.26948661]
[1772906603206,0.46504022,1970.1,1969.2,5.07794647]
[1772906603406,2.95797728,1970.0,1969.2,5.07794647]
[1772906603606,2.95797728,1969.9,1969.2,5.07794647]
[1772906603821,2.95797728,1969.8,1969.2,5.07794647]
[1772906604038,3.55594004,1970.5,1969.3,0.47250929]
[1772906604335,3.42527698,1970.4,1969.3,0.47250929]
[1772906604633,2.96023676,1970.3,1969.3,0.47250929]
[1772906604834,0.46504022,1970.4,1969.3,0.47250929]
[1772906604835,2.96023676,1970.2,1969.3,0.47250929]
[1772906605022,2.96023676,1970.1,1969.3,0.47250929]
[1772906605228,0.46504022,1970.4,1969.4,1.26942215]
[1772906605458,0.46504022,1970.4,1969.4,1.74193144]
[1772906605626,3.55594004,1970.6,1969.5,0.47250929]
[1772906605830,4.82458944,1970.6,1969.5,0.47250929]
[1772906606045,1.2686494,1970.6,1969.5,0.47250929]
[1772906606261,5.28962966,1970.6,1969.5,0.47250929]
[1772906606560,0.46504022,1970.4,1969.4,1.26942215]
[1772906606752,0.46504022,1970.3,1969.4,1.26942215]
[1772906607258,0.46504022,1970.3,1969.2,5.55045576]
[1772906607259,1.26897111,1970.1,1969.2,5.07768863]
[1772906607462,0.46504022,1970.0,1969.2,5.07768863]
[1772906607862,0.46504022,1969.9,1968.6,0.47250929]
[1772906608066,0.46504022,1969.5,1968.6,5.07949408]
[1772906608248,3.55594004,1969.4,1968.6,5.07949408]
[1772906608428,0.46504022,1969.3,1968.6,5.07949408]
[1772906609174,4.02098026,1969.3,1968.6,5.07949408]
[1772906609561,3.55594004,1969.3,1968.6,5.07949408]
[1772906609944,3.55594004,1969.3,1968.6,1.26993802]
[1772906609945,3.55594004,1969.2,1968.6,1.26993802]
[1772906610148,3.55594004,1969.1,1968.6,1.26993802]
[1772906610348,0.46504022,1968.8,1967.8,1.80547983]
[1772906610547,3.55594004,1968.5,1967.9,0.47250929]
[1772906610763,3.55594004,1968.7,1967.9,0.47250929]
[1772906610966,3.55594004,1968.6,1967.9,0.47250929]
[1772906611143,3.57957237,1968.7,1967.9,0.47250929]
[1772906611335,3.57957237,1968.7,1968.0,1.2703252]
[1772906611735,3.57957237,1968.7,1968.1,0.47250929]
[1772906611967,5.80428478,1969.3,1968.1,0.47250929]
[1772906611968,4.35320746,1969.1,1968.1,0.47250929]
[1772906612141,5.62279213,1969.2,1968.1,0.47250929]
[1772906612982,5.62275999,1969.2,1968.6,0.0011]
[1772906613691,4.35320746,1969.3,1968.6,0.0011]
[1772906613976,4.35320746,1969.4,1968.6,0.0011]
[1772906614280,5.62251854,1969.6,1968.6,0.49693388]
[1772906615074,4.35320746,1969.6,1968.6,0.49693388]
[1772906615277,6.11832971,1969.7,1968.6,0.49693388]
[1772906615478,4.84905639,1969.7,1968.7,1.26987352]
[1772906615662,8.3157666,1969.8,1968.7,1.7657074]
[1772906615976,7.04659785,1969.8,1968.7,1.7657074]
[1772906616274,4.84905639,1969.5,1968.6,1.27098826]
[1772906616642,4.35320746,1969.6,1968.6,1.76682214]
[1772906616966,7.54244678,1969.8,1968.7,0.49583388]
[1772906617273,2.99035021,1969.7,1968.7,0.49583388]
[1772906617484,2.99035021,1969.6,1968.9,0.49583388]
[1772906617780,2.99035021,1969.5,1968.9,0.49583388]
[1772906618074,4.35420746,1969.9,1968.9,0.49583388]
[1772906618275,0.001,1969.9,1968.9,0.49583388]
[1772906619667,0.001,1969.9,1969.1,0.49583388]
[1772906620167,0.49684893,1969.9,1969.0,1.26968004]
[1772906620478,0.49584893,1969.6,1968.6,0.0011]
[1772906620776,0.49584893,1969.5,1968.6,1.27103373]
[1772906621789,0.49584893,1969.5,1968.6,0.0011]
[1772906621790,0.49584893,1969.3,1968.6,0.0011]
[1772906622290,4.84905639,1969.3,1968.6,0.0011]
[1772906622439,0.49584893,1969.2,1968.6,0.0011]
[1772906623586,1.26961556,1969.1,1968.6,0.0011]
[1772906623781,1.7654505,1969.2,1968.6,0.0011]
[1772906624082,1.26953204,1969.3,1968.6,0.0011]
[1772906625142,1.76538097,1969.3,1968.6,0.0011]
[1772906625846,1.26953204,1969.3,1968.6,0.0011]
[1772906626087,5.62259962,1969.5,1968.6,0.49693388]
[1772906626590,0.001,1969.2,1968.6,0.49693388]
[1772906627959,0.001,1969.2,1968.7,1.26987352]
[1772906628780,0.001,1969.2,1968.8,0.49583388]
[1772906629084,0.001,1969.2,1968.6,1.27103157]
[1772906630065,2.99148383,1969.1,1968.6,1.27103157]
[1772906630275,2.99148383,1969.0,1968.6,1.27103157]
[1772906630479,0.11596825,1968.9,1968.6,1.27103157]
[1772906631179,0.001,1969.2,1968.6,1.27103157]
[1772906631381,2.99267343,1969.1,1968.7,0.49583388]
[1772906631579,2.99267343,1969.0,1968.7,0.49583388]
[1772906631764,0.001,1969.2,1968.7,0.49583388]
[1772906631966,2.99269699,1969.1,1968.6,1.27103157]
[1772906632164,1.26932408,1969.6,1968.8,0.49583388]
[1772906632770,1.76517301,1969.6,1968.7,5.07923608]
[1772906634166,1.76517301,1969.6,1968.6,1.27097352]
[1772906634869,0.49584893,1969.5,1968.6,1.27097352]
[1772906635179,2.89305068,1969.5,1968.6,1.27097352]
[1772906635967,2.39720175,1969.5,1968.7,0.49583388]
[1772906636214,2.39720175,1969.5,1968.8,1.7656429]
[1772906636488,3.66657304,1969.5,1968.8,1.26980902]
[1772906636874,2.39720175,1969.5,1968.8,1.26980902]
[1772906637485,3.66656929,1969.5,1968.8,1.26980902]
[1772906637783,2.39720175,1969.5,1968.9,0.49583388]
[1772906638194,2.39720175,1969.6,1969.0,1.26968004]
[1772906640067,1.26923882,1969.7,1969.0,1.26968004]
[1772906640068,3.66644057,1969.7,1969.0,1.26968004]
[1772906640456,2.39720175,1969.7,1969.0,1.76551392]
[1772906640681,3.6664317,1969.7,1969.0,1.76551392]
[1772906640884,0.001,1969.5,1969.0,1.76551392]
[1772906641400,0.001,1969.5,1969.1,0.49583388]
[1772906642189,4.8744984,1969.9,1969.1,0.49583388]
[1772906642487,0.001,1969.9,1969.3,0.47206509]
[1772906644080,3.00405866,1969.8,1969.3,0.47206509]
[1772906644400,3.00405866,1969.7,1969.3,0.47206509]
[1772906644602,0.001,1969.9,1969.5,0.47206509]
[1772906644796,3.00332389,1969.8,1969.5,0.47206509]
[1772906645107,3.00332389,1969.7,1969.5,0.47206509]
[1772906645288,0.001,1969.9,1969.5,0.47206509]
[1772906645487,3.00242043,1969.8,1969.5,0.47206509]
[1772906645715,0.001,1969.9,1969.5,0.47206509]
[1772906646011,3.00242839,1969.8,1969.5,0.47206509]
[1772906646174,0.001,1969.9,1969.5,0.47206509]
[1772906646372,3.0018956,1969.8,1969.5,0.47206509]
[1772906646574,0.001,1969.9,1969.5,0.47206509]
[1772906646806,3.00176504,1969.8,1969.6,1.26929325]
[1772906646995,0.001,1969.9,1969.6,1.26929325]
[1772906647307,3.00175499,1969.8,1969.5,1.7413776]
[1772906647514,0.001,1969.9,1969.4,2.50441201]
[1772906647813,3.00124064,1969.8,1969.5,0.47206509]
[1772906647981,0.001,1969.9,1969.5,0.47206509]
[1772906648178,3.00124363,1969.8,1969.5,0.47206509]